bitfinex-derivatives/quotes_BTCF0:USTF0_20250130
["timestamp","ask_amount","ask_price","bid_price","bid_amount"]
[1738254532323,0.783797,105960.0,105950.0,0.1889169]
[1738254532933,0.88657528,105960.0,105950.0,0.1889169]
[1738254533735,0.88657528,105960.0,105950.0,0.0001419]
[1738254533934,0.89611025,105960.0,105950.0,0.1889169]
[1738254534129,1.00879383,105960.0,105950.0,0.1889169]
[1738254535132,0.97995383,105960.0,105950.0,0.1889169]
[1738254535333,1.00875383,105960.0,105950.0,0.1889169]
[1738254537542,1.03590975,105960.0,105950.0,0.1889169]
[1738254538836,1.03490975,105960.0,105950.0,0.0001419]
[1738254539437,1.03690975,105960.0,105950.0,0.1889169]
[1738254539935,1.03590975,105960.0,105950.0,0.1889169]
[1738254540439,1.03690975,105960.0,105950.0,0.1889169]
[1738254540841,1.03690975,105960.0,105950.0,0.0001419]
[1738254541135,0.99884853,105960.0,105950.0,0.0001419]
[1738254541546,0.89607025,105960.0,105950.0,0.0001419]
[1738254542138,0.89507025,105960.0,105950.0,0.1889169]
[1738254542442,0.89607025,105960.0,105950.0,0.1889169]
[1738254542944,0.89507025,105960.0,105950.0,0.1889169]
[1738254543143,0.89607025,105960.0,105950.0,0.1889169]
[1738254546543,1.03690975,105960.0,105950.0,0.1889169]
[1738254549941,0.15237447,105960.0,105950.0,0.5897169]
[1738254550141,0.1428395,105960.0,105950.0,0.75759518]
[1738254550347,0.16891214,105970.0,105960.0,0.188757]
[1738254550645,0.16891214,105970.0,105960.0,0.82861356]
[1738254551346,0.16891214,105970.0,105960.0,0.72583528]
[1738254552552,0.16891214,105970.0,105960.0,0.82861356]
[1738254552844,0.16991214,105970.0,105960.0,0.82861356]
[1738254553546,0.16991214,105970.0,105960.0,0.89741356]
[1738254554051,0.16991214,105970.0,105960.0,2.39741356]
[1738254554647,0.001,105970.0,105960.0,2.67859074]
[1738254554848,0.001,105970.0,105960.0,2.98251263]
[1738254555152,0.001,105970.0,105960.0,1.48251263]
[1738254555650,0.001,105970.0,105960.0,2.98251263]
[1738254555852,0.001,105970.0,105960.0,3.34331263]
[1738254556039,0.001,105970.0,105960.0,1.84331263]
[1738254556242,0.0001419,105980.0,105960.0,1.84331263]
[1738254556243,0.0001419,105980.0,105970.0,0.188739]
[1738254556447,0.0001419,105980.0,105970.0,0.66231728]
[1738254557556,0.0001419,105980.0,105970.0,0.66331728]
[1738254557557,0.0011419,105980.0,105970.0,0.66331728]
[1738254559151,0.0001419,105980.0,105970.0,0.66331728]
[1738254560151,0.0001419,105980.0,105970.0,0.66231728]
[1738254560755,0.0001419,105980.0,105970.0,0.30151728]
[1738254560947,0.0001419,105980.0,105970.0,0.66231728]
[1738254561756,9e-07,105980.0,105970.0,1.09385556]
[1738254561951,0.1,106000.0,105990.0,0.188704]
[1738254562256,0.1,106000.0,105990.0,1.24586056]
[1738254562456,0.1,106000.0,105990.0,1.31196056]
[1738254562956,0.17630414,106020.0,106010.0,0.29144628]
[1738254563152,0.20506414,106020.0,106010.0,0.29144628]
[1738254563660,0.21435223,106020.0,106010.0,0.29144628]
[1738254564144,0.21435223,106020.0,106010.0,0.29244628]
[1738254564459,0.11290414,106020.0,106010.0,0.29244628]
[1738254564755,0.11290414,106020.0,106010.0,0.35874628]
[1738254565257,0.11290414,106020.0,106010.0,0.35974628]
[1738254565452,0.5783429,106030.0,106010.0,0.17107828]
[1738254565757,0.2175429,106030.0,106020.0,0.29142828]
[1738254565947,0.5783429,106030.0,106020.0,0.18865]
[1738254566260,0.5878608,106030.0,106020.0,0.18865]
[1738254566447,0.5878608,106030.0,106010.0,0.19066]
[1738254566448,0.18865,106020.0,106010.0,0.19066]
[1738254566654,0.54945,106020.0,106010.0,0.18966]
[1738254566951,0.54945,106020.0,106010.0,0.19066]
[1738254567858,0.54945,106020.0,106010.0,0.18966]
[1738254568555,0.54945,106020.0,106010.0,0.19066]
[1738254568860,0.54945,106020.0,106010.0,0.18966]
[1738254569358,0.65222828,106020.0,106010.0,0.18966]
[1738254569758,0.65222828,106020.0,106010.0,0.19066]
[1738254570550,0.54945,106020.0,106010.0,0.19066]
[1738254571256,0.54945,106020.0,106010.0,0.29343828]
[1738254571464,0.5878598,106030.0,106020.0,0.18865]
[1738254571763,0.5590998,106030.0,106020.0,0.18865]
[1738254572053,0.5878598,106030.0,106020.0,0.29142828]
[1738254572754,0.5878598,106030.0,106020.0,0.29242828]
[1738254573063,0.5878598,106030.0,106020.0,0.18965]
[1738254574162,0.5878598,106030.0,106020.0,0.19065]
[1738254575252,0.5590998,106030.0,106020.0,0.19065]
[1738254577554,0.5590998,106030.0,106020.0,0.18965]
[1738254577864,0.5590998,106030.0,106020.0,0.19065]
[1738254579273,0.66187808,106030.0,106020.0,0.19065]
[1738254579476,0.66187808,106030.0,106020.0,0.002]
[1738254581180,0.66187808,106030.0,106000.0,0.1888189]
[1738254581181,0.188668,106010.0,106000.0,0.1888189]
[1738254581481,0.68096628,106010.0,106000.0,0.1888189]
[1738254581674,0.709688,106010.0,106000.0,0.1888189]
[1738254581876,1.17326628,106010.0,106000.0,0.0001419]
[1738254582167,1.17326628,106010.0,106000.0,0.1888279]
[1738254582375,1.17326628,106010.0,106000.0,0.1898279]
[1738254582577,1.070488,106010.0,106000.0,0.1898279]
[1738254583877,1.18339214,106010.0,106000.0,0.1898279]
[1738254585080,1.15467214,106010.0,106000.0,0.1898279]
[1738254585282,1.18339214,106010.0,106000.0,0.1898279]
[1738254589492,1.19273664,106010.0,106000.0,0.1898279]
[1738254589682,1.29551492,106010.0,106000.0,0.1898279]
[1738254589983,1.29551492,106010.0,106000.0,0.0011419]
[1738254591286,1.29551492,106010.0,105980.0,0.22531111]
[1738254591287,0.188704,105990.0,105980.0,0.22531111]
[1738254591587,1.04180228,105990.0,105980.0,0.22531111]
[1738254592392,0.941024,105990.0,105980.0,0.41403311]
[1738254592581,0.912304,105990.0,105980.0,0.41403311]
[1738254592780,0.941024,105990.0,105980.0,0.41403311]
[1738254594696,1.05392814,105990.0,105980.0,0.188722]
[1738254596194,0.30360814,105990.0,105980.0,0.188722]
[1738254596391,0.11490414,105990.0,105980.0,0.71690028]
[1738254596590,0.11490414,105990.0,105980.0,0.78950028]
[1738254597089,0.11490414,105990.0,105980.0,2.28950028]
[1738254597589,0.11490414,105990.0,105980.0,0.78950028]
[1738254598494,0.002,105990.0,105980.0,0.78950028]
[1738254601389,0.002,105990.0,105980.0,2.28950028]
[1738254602186,0.002,105990.0,105980.0,2.29872252]
[1738254603086,0.002,105990.0,105980.0,2.4015008]
[1738254603293,0.11304604,106000.0,105990.0,0.188704]
[1738254603497,0.11304604,106000.0,105990.0,0.72438228]
[1738254604494,0.11504604,106000.0,105990.0,0.72438228]
[1738254604801,0.11604604,106000.0,105990.0,0.72438228]
[1738254606101,0.0031419,106000.0,105990.0,0.72438228]
[1738254606995,0.1918279,106000.0,105990.0,0.260804]
[1738254607301,0.68208618,106000.0,105990.0,0.265804]
[1738254607489,0.68108618,106000.0,105990.0,0.267804]
[1738254607892,0.5783079,106000.0,105990.0,0.37058228]
[1738254608093,0.0288219,106000.0,105990.0,0.73138228]
[1738254608306,0.0001419,106000.0,105990.0,0.72938228]
[1738254609199,0.0001419,106000.0,105990.0,0.72538228]
[1738254609391,0.0001419,106000.0,105990.0,0.72838228]
[1738254610099,0.0001419,106000.0,105990.0,0.95369339]
[1738254613107,0.0001419,106000.0,105990.0,0.9633714]
[1738254614603,0.0001419,106000.0,105990.0,1.06614968]
[1738254615196,0.11290414,106020.0,106010.0,0.188668]
[1738254615407,0.11290414,106020.0,106010.0,0.30144628]
[1738254615711,0.11290414,106020.0,106010.0,0.36704628]
[1738254617308,0.11390414,106020.0,106010.0,0.36704628]
[1738254617504,0.11390414,106020.0,106010.0,0.72784628]
[1738254618492,0.001,106020.0,106010.0,0.72784628]
[1738254619105,0.0001419,106030.0,106020.0,0.188651]
[1738254619315,0.6161434,106040.0,106020.0,0.82675656]
[1738254619316,0.25392814,106040.0,106020.0,0.82675656]
[1738254619498,0.25392814,106040.0,106030.0,0.65221128]
[1738254619694,0.25392814,106040.0,106030.0,0.69089128]
[1738254620998,0.25492814,106040.0,106030.0,0.69089128]
[1738254621705,0.25492814,106040.0,106030.0,0.66221128]
[1738254622301,0.25492814,106040.0,106030.0,0.70931128]
[1738254622911,0.001,106040.0,106030.0,0.70931128]
[1738254623817,1e-06,106040.0,106030.0,1.12175758]
[1738254624306,1e-06,106040.0,106030.0,0.7476193]
[1738254624505,1e-06,106040.0,106030.0,0.7189793]
[1738254625105,0.05069458,106050.0,106040.0,0.188615]
[1738254625303,0.05069458,106050.0,106040.0,0.29139328]
[1738254625711,0.70286986,106050.0,106040.0,0.188615]
[1738254625905,0.74946986,106050.0,106040.0,0.188615]
[1738254626108,0.64669158,106050.0,106040.0,0.188615]
[1738254626312,0.64669158,106050.0,106040.0,0.29139328]
[1738254631809,0.28589158,106050.0,106040.0,0.29139328]
[1738254632009,0.09729458,106050.0,106040.0,0.29139328]
[1738254632818,9.458e-05,106050.0,106040.0,0.66219328]
[1738254634516,0.64315406,106070.0,106060.0,0.188579]
[1738254634517,0.27270414,106070.0,106060.0,0.188579]
[1738254634716,0.27270414,106070.0,106060.0,0.29135728]
[1738254636317,0.1598,106070.0,106060.0,0.29135728]
[1738254636516,0.1598,106070.0,106060.0,0.29235728]
[1738254638412,0.5206,106070.0,106060.0,0.29235728]
[1738254638613,0.81194028,106070.0,106060.0,0.189579]
[1738254638817,0.84058028,106070.0,106060.0,0.189579]
[1738254639114,0.84058028,106070.0,106060.0,0.001]
[1738254639515,0.84058028,106070.0,106060.0,0.041]
[1738254640420,0.18858,106060.0,106050.0,0.0601419]
[1738254640620,0.54938,106060.0,106050.0,0.2187399]
[1738254640923,0.54938,106060.0,106050.0,0.32151818]
[1738254641222,0.54938,106060.0,106050.0,0.13292018]
[1738254641418,0.188598,106050.0,106040.0,0.04]
[1738254641618,0.578038,106050.0,106040.0,0.198615]
[1738254641924,0.578038,106050.0,106040.0,0.30139328]
[1738254642613,0.59499656,106050.0,106030.0,0.0101419]
[1738254642829,0.74959328,106040.0,106030.0,0.0001419]
[1738254643524,0.79889328,106040.0,106030.0,0.0001419]
[1738254644631,0.82753328,106040.0,106030.0,0.1887749]
[1738254645032,0.82753328,106040.0,106030.0,0.0001419]
[1738254646343,0.82753328,106040.0,106020.0,0.188644]
[1738254646344,0.188633,106030.0,106020.0,0.188644]
[1738254646524,0.65221128,106030.0,106020.0,0.188644]
[1738254646717,0.65221128,106030.0,106020.0,0.198644]
[1738254647022,0.65221128,106030.0,106020.0,0.01]
[1738254647228,0.69937028,106030.0,106020.0,0.01]
[1738254647621,0.69937028,106030.0,106020.0,0.011]
[1738254647818,0.65221128,106030.0,106020.0,0.011]
[1738254649023,0.65221128,106030.0,106020.0,0.014]
[1738254649729,0.65221128,106030.0,106020.0,0.01]
[1738254651424,0.66164112,106030.0,106020.0,0.01]
[1738254653929,0.77454526,106030.0,106020.0,0.01]
[1738254657032,0.188651,106020.0,106010.0,0.0001419]
[1738254657236,0.188651,106020.0,105990.0,0.188695]
[1738254657237,0.188687,106000.0,105990.0,0.188695]
[1738254657535,1.04166528,106000.0,105990.0,0.188695]
[1738254657844,0.188704,105990.0,105980.0,0.36809696]
[1738254658028,0.65228228,105990.0,105980.0,0.37809696]
[1738254659431,0.65228228,105990.0,105980.0,0.35809696]
[1738254660134,0.549504,105990.0,105980.0,0.35809696]
[1738254660432,0.549504,105990.0,105980.0,0.36609696]
[1738254661025,0.3609419,106000.0,105980.0,0.28016024]
[1738254661233,0.65240718,106000.0,105990.0,0.188704]
[1738254661539,0.65240718,106000.0,105990.0,0.198704]
[1738254662125,0.68100718,106000.0,105990.0,0.198704]
[1738254662334,0.5782289,106000.0,105990.0,0.198704]
[1738254662730,0.58785407,106000.0,105990.0,0.198704]
[1738254662936,0.69063235,106000.0,105990.0,0.198704]
[1738254663231,0.69063235,106000.0,105990.0,0.203704]
[1738254663734,0.69063235,106000.0,105990.0,0.205704]
[1738254664438,0.69063235,106000.0,105990.0,0.017]
[1738254664631,0.69063235,106000.0,105990.0,0.007]
[1738254664833,0.83663235,106000.0,105990.0,0.007]
[1738254666026,0.83663235,106000.0,105990.0,0.002]
[1738254666226,0.83663235,106000.0,105990.0,0.005]
[1738254667429,0.83663235,106000.0,105990.0,0.004]
[1738254668434,0.75853235,106000.0,105990.0,0.192704]
[1738254668634,0.55925407,106000.0,105990.0,0.192704]
[1738254668841,0.69063235,106000.0,105990.0,0.192704]
[1738254671430,0.19845407,106000.0,105990.0,0.202704]
[1738254671637,0.0287419,106000.0,105990.0,0.202704]
[1738254671838,0.2174289,106000.0,105990.0,0.202704]
[1738254673140,0.0001419,106000.0,105990.0,0.30548228]
[1738254673440,0.29160718,106000.0,105990.0,0.202704]
[1738254674039,0.1888289,106000.0,105990.0,0.202704]
[1738254674239,0.0001419,106000.0,105990.0,0.251304]
[1738254675638,0.1888289,106000.0,105990.0,0.251304]
[1738254675833,0.29160718,106000.0,105990.0,0.251304]
[1738254676139,0.10292018,106000.0,105990.0,0.614104]
[1738254676342,0.10292018,106000.0,105990.0,0.253304]
[1738254676343,0.29160718,106000.0,105990.0,0.253304]
[1738254676639,0.29160718,106000.0,105990.0,0.252304]
[1738254676843,0.0001419,106000.0,105990.0,0.252304]
[1738254677236,0.0001419,106000.0,105990.0,0.35508228]
[1738254677437,0.0001419,106000.0,105990.0,0.71488228]
[1738254678534,0.0001419,106000.0,105990.0,0.251304]
[1738254678939,0.0001419,106000.0,105990.0,0.247304]
[1738254679139,0.0001419,106000.0,105990.0,0.254304]
[1738254679743,0.0001419,106000.0,105990.0,0.252304]
[1738254681034,0.0001419,106000.0,105990.0,0.250304]
[1738254681235,0.0001419,106000.0,105990.0,0.251304]
[1738254681431,0.10292018,106000.0,105990.0,0.251304]
[1738254681641,0.0001419,106000.0,105990.0,0.251304]
[1738254682348,0.65240718,106000.0,105990.0,0.251304]
[1738254682846,0.29160718,106000.0,105990.0,0.251304]
[1738254683541,0.5496289,106000.0,105990.0,0.251304]
[1738254683844,0.65240718,106000.0,105990.0,0.41927078]
[1738254684242,0.65240718,106000.0,105990.0,0.37067078]
[1738254684445,0.74740718,106000.0,105990.0,0.37067078]
[1738254685342,0.85018546,106000.0,105990.0,0.18196678]
[1738254685538,0.74740718,106000.0,105990.0,0.17196678]
[1738254685738,0.74740718,106000.0,105990.0,0.36067078]
[1738254685739,0.5496289,106000.0,105990.0,0.36067078]
[1738254685947,0.68100718,106000.0,105990.0,0.17196678]
[1738254686247,0.72960718,106000.0,105990.0,0.17196678]
[1738254686450,0.72960718,106000.0,105990.0,0.36067078]
[1738254687351,0.98353532,106000.0,105990.0,0.192704]
[1738254690442,0.83215704,106000.0,105990.0,0.192704]
[1738254690642,0.83215704,106000.0,105990.0,0.284904]
[1738254690843,0.25407004,106000.0,105990.0,0.39768228]
[1738254691143,0.25407004,106000.0,105990.0,0.44468228]
[1738254694261,0.11304604,106000.0,105990.0,0.341904]
[1738254694554,0.11304604,106000.0,105990.0,0.44468228]
[1738254695257,0.0001419,106000.0,105990.0,0.83796017]
[1738254695650,0.0001419,106000.0,105990.0,0.73518189]
[1738254695852,0.29160718,106000.0,105990.0,0.73518189]
[1738254696047,0.65240718,106000.0,105990.0,0.73518189]
[1738254696252,0.0001419,106000.0,105990.0,0.83796017]
[1738254696560,0.0001419,106000.0,105990.0,1.19876017]
[1738254699157,0.0001419,106000.0,105990.0,0.80548228]
[1738254699158,0.11304604,106000.0,105990.0,0.80548228]
[1738254701055,0.11304604,106000.0,105990.0,0.341904]
[1738254701263,0.47384604,106000.0,105990.0,0.341904]
[1738254701458,0.11304604,106000.0,105990.0,0.341904]
[1738254702262,0.11304604,106000.0,105990.0,0.44468228]
[1738254703648,0.79387132,106000.0,105990.0,0.014]
[1738254703849,0.79387132,106000.0,105990.0,0.202704]
[1738254704258,0.79387132,106000.0,105990.0,0.204704]
[1738254704566,0.89007132,106000.0,105990.0,0.017]
[1738254704861,0.93877132,106000.0,105990.0,0.017]
[1738254705252,0.93877132,106000.0,105990.0,0.016]
[1738254705861,0.93877132,106000.0,105990.0,0.202704]
[1738254706960,0.93877132,106000.0,105990.0,0.192704]
[1738254707357,0.93877132,106000.0,105990.0,0.004]
[1738254707556,0.93877132,106000.0,105990.0,0.192704]
[1738254708362,0.83599304,106000.0,105990.0,0.192704]
[1738254709062,0.93877132,106000.0,105990.0,0.192704]
[1738254710358,0.11304604,106000.0,105990.0,0.82906056]
[1738254710564,0.11304604,106000.0,105990.0,0.92246056]
[1738254711065,0.11304604,106000.0,105990.0,2.45102056]
[1738254711566,0.11304604,106000.0,105990.0,2.42246056]
[1738254711763,0.11304604,106000.0,105990.0,2.45102056]
[1738254711960,0.11304604,106000.0,105990.0,0.95102056]
[1738254715958,0.141024,106010.0,105990.0,1.06231656]
[1738254716170,0.14109,106020.0,106010.0,0.188669]
[1738254716471,0.14109,106020.0,106010.0,0.66224728]
[1738254716671,0.14109,106020.0,106010.0,0.75624728]
[1738254716969,0.14109,106020.0,106010.0,0.78480728]
[1738254721267,0.0001419,106030.0,106020.0,0.188651]
[1738254721471,0.0001419,106030.0,106020.0,0.72672928]
[1738254721767,0.5495749,106030.0,106020.0,0.218651]
[1738254721970,0.3609419,106030.0,106020.0,0.32142928]
[1738254724567,0.5495749,106030.0,106020.0,0.32142928]
[1738254725385,0.0001419,106030.0,106020.0,0.68222928]
[1738254727068,0.3609419,106030.0,106020.0,0.32142928]
[1738254727273,0.5495749,106030.0,106020.0,0.32142928]
[1738254728280,0.1887749,106030.0,106020.0,0.68222928]
[1738254729373,0.1887749,106030.0,106020.0,2.18222928]
[1738254730372,0.0001419,106030.0,106020.0,2.18222928]
[1738254732377,0.17850406,106050.0,106020.0,2.12487656]
[1738254732585,0.16891214,106050.0,106040.0,0.65217528]
[1738254732774,0.16891214,106050.0,106040.0,0.71217528]
[1738254733474,0.35749114,106050.0,106040.0,0.248597]
[1738254734367,0.188579,106050.0,106040.0,0.248597]
[1738254734567,0.85009208,106060.0,106050.0,0.188579]
[1738254734772,0.82157208,106060.0,106050.0,0.188579]
[1738254734972,0.85009208,106060.0,106050.0,0.188579]
[1738254736076,0.85009208,106060.0,106050.0,0.189579]
[1738254736374,0.95287036,106060.0,106050.0,0.189579]
[1738254738183,0.92435036,106060.0,106050.0,0.189579]
[1738254738479,0.85009208,106060.0,106050.0,0.189579]
[1738254738681,0.92435036,106060.0,106050.0,0.189579]
[1738254738869,0.78395822,106060.0,106050.0,0.189579]
[1738254740569,0.78395822,106060.0,106050.0,0.001]
[1738254748083,0.75543822,106060.0,106050.0,0.001]
[1738254748283,0.78395822,106060.0,106050.0,0.001]
[1738254749286,0.6981655,106060.0,106030.0,0.0001419]
[1738254749585,0.188614,106030.0,106020.0,0.0014146]
[1738254749773,0.68067228,106030.0,106020.0,0.1900466]
[1738254749973,0.81497228,106030.0,106020.0,0.0014146]
[1738254750174,0.18865,106010.0,106000.0,1.99102378]
[1738254750384,0.18865,106010.0,106000.0,2.02102378]
[1738254750576,0.21713,106010.0,106000.0,2.02102378]
[1738254750783,0.21713,106010.0,106000.0,2.12380206]
[1738254751483,0.21713,106010.0,106000.0,0.85648334]
[1738254753285,0.21713,106010.0,106000.0,0.85448334]
[1738254753494,0.21713,106010.0,106000.0,0.85648334]
[1738254753886,0.21713,106010.0,106000.0,0.85448334]
[1738254754388,0.21713,106010.0,106000.0,0.85148334]
[1738254754693,0.21713,106010.0,106000.0,0.85648334]
[1738254754991,0.21713,106010.0,106000.0,0.85148334]
[1738254755185,0.21713,106010.0,106000.0,0.85448334]
[1738254755378,0.21713,106010.0,106000.0,0.8558636]
[1738254755891,0.21713,106010.0,106000.0,0.75308532]
[1738254756295,0.21713,106010.0,106000.0,0.75508532]
[1738254756593,0.21713,106010.0,106000.0,0.75308532]
[1738254756899,0.21713,106010.0,106000.0,0.75408532]
[1738254757191,0.22673682,106010.0,106000.0,0.75408532]
[1738254757696,0.22673682,106010.0,106000.0,0.75208532]
[1738254757893,0.22673682,106010.0,106000.0,0.8548636]
[1738254758792,0.22673682,106010.0,106000.0,0.62913313]
[1738254760292,0.22673682,106010.0,106000.0,0.33769785]
[1738254761087,0.22673682,106010.0,106000.0,0.52636585]
[1738254761290,0.22673682,106010.0,106000.0,0.62914413]
[1738254763598,0.22673682,106010.0,106000.0,0.52636585]
[1738254763793,0.58753682,106010.0,106000.0,0.33769785]
[1738254763993,0.6903151,106010.0,106000.0,0.33769785]
[1738254764188,0.3295151,106010.0,106000.0,0.52636585]
[1738254764498,0.22673682,106010.0,106000.0,0.357068]
[1738254765795,0.22673682,106010.0,106000.0,0.1684]
[1738254766191,0.58753682,106010.0,106000.0,0.1684]
[1738254766396,0.58753682,106010.0,106000.0,0.034]
[1738254766397,0.6903151,106010.0,106000.0,0.034]
[1738254766790,0.7811151,106010.0,106000.0,0.034]
[1738254767802,0.7811151,106010.0,106000.0,0.004]
[1738254768099,0.8251151,106010.0,106000.0,0.004]
[1738254768298,0.8251151,106010.0,106000.0,1e-06]
[1738254768299,0.92789338,106010.0,106000.0,1e-06]
[1738254768495,0.78640638,106010.0,105980.0,0.28216309]
[1738254768793,0.235902,105970.0,105960.0,0.19792454]
[1738254769007,0.188739,105960.0,105950.0,0.42047388]
[1738254769196,0.88919556,105960.0,105950.0,0.42047388]
[1738254769499,0.91767556,105960.0,105950.0,0.42047388]
[1738254771096,0.91767556,105960.0,105950.0,0.42247388]
[1738254772500,0.91767556,105960.0,105950.0,0.42347388]
[1738254773199,0.91767556,105960.0,105950.0,0.40442533]
[1738254773499,0.188793,105930.0,105920.0,0.328208]
[1738254773704,0.68085128,105930.0,105920.0,0.328208]
[1738254774199,0.68085128,105930.0,105920.0,0.1394]
[1738254774801,0.68085128,105930.0,105920.0,0.19681]
[1738254774998,0.68085128,105930.0,105920.0,0.19981]
[1738254775903,0.68085128,105930.0,105920.0,0.011]
[1738254776091,0.46372018,105940.0,105920.0,0.47457828]
[1738254776301,0.5497239,105940.0,105930.0,0.188793]
[1738254776500,0.1889239,105940.0,105930.0,0.188793]
[1738254776803,0.0286219,105940.0,105930.0,0.29157128]
[1738254776998,0.0001419,105940.0,105930.0,0.42787128]
[1738254777204,0.08413476,105940.0,105930.0,0.42787128]
[1738254777405,0.08413476,105940.0,105930.0,1.92787128]
[1738254777589,0.08413476,105940.0,105930.0,0.42787128]
[1738254778099,0.08413476,105940.0,105930.0,0.43287128]
[1738254778303,0.08413476,105940.0,105930.0,0.43487128]
[1738254778798,0.27290976,105940.0,105930.0,0.44487128]
[1738254780102,0.08413476,105940.0,105930.0,0.44487128]
[1738254780807,0.0001419,105940.0,105930.0,0.44487128]
[1738254781898,0.0001419,105940.0,105930.0,0.90844956]
[1738254783510,0.63353586,105960.0,105950.0,0.188757]
[1738254783711,0.63353586,105960.0,105950.0,0.29153528]
[1738254784701,0.63453586,105960.0,105950.0,0.29153528]
[1738254785101,0.001,105960.0,105950.0,0.29153528]
[1738254785313,0.001,105960.0,105950.0,0.70233528]
[1738254786101,0.579019,105960.0,105950.0,0.238757]
[1738254786302,0.188757,105950.0,105940.0,0.1889109]
[1738254786609,0.68081528,105950.0,105940.0,0.0001419]
[1738254786805,0.578037,105950.0,105940.0,0.1889169]
[1738254787012,0.217237,105950.0,105940.0,0.1889169]
[1738254787201,0.217237,105950.0,105940.0,0.29169518]
[1738254787911,0.217237,105950.0,105940.0,0.29269518]
[1738254789307,0.41283877,105950.0,105940.0,0.29269518]
[1738254789512,0.77363877,105950.0,105940.0,0.19177009]
[1738254790508,0.77363877,105950.0,105940.0,0.29454837]
[1738254791514,0.68964591,105950.0,105940.0,0.29454837]
[1738254792218,0.69907544,105950.0,105940.0,0.15291753]
[1738254792514,0.69907544,105950.0,105940.0,0.29455328]
[1738254793717,0.58746653,105950.0,105940.0,0.29455328]
[1738254794310,0.58746653,105950.0,105940.0,0.191775]
[1738254794512,0.69024481,105950.0,105940.0,0.003]
[1738254795018,0.73764481,105950.0,105940.0,0.003]
[1738254795914,0.70916481,105950.0,105940.0,0.003]
[1738254797517,0.85002554,105950.0,105940.0,0.003]
[1738254800315,0.74724726,105950.0,105940.0,0.10577828]
[1738254800709,0.74724726,105950.0,105940.0,0.29455328]
[1738254800912,0.74724726,105950.0,105940.0,0.191775]
[1738254801114,0.74724726,105950.0,105940.0,0.29455328]
[1738254801817,0.7754194,105950.0,105940.0,0.191775]
[1738254802617,0.7754194,105950.0,105940.0,0.29455328]
[1738254803008,0.3672194,105950.0,105940.0,0.29455328]
[1738254803404,0.3672194,105950.0,105940.0,0.37795328]
[1738254804004,0.3672194,105950.0,105940.0,0.275175]
[1738254804210,0.83079768,105950.0,105940.0,0.191775]
[1738254804410,0.87549768,105950.0,105940.0,0.191775]
[1738254806211,0.70646481,105950.0,105940.0,0.191775]
[1738254806613,0.60368653,105950.0,105940.0,0.191775]
[1738254806809,0.60368653,105950.0,105940.0,0.29455328]
[1738254807712,0.60368653,105950.0,105940.0,0.09889009]
[1738254807923,0.60368653,105950.0,105940.0,0.28766509]
[1738254809219,0.63212653,105950.0,105940.0,0.28766509]
[1738254809518,0.188775,105940.0,105930.0,0.1889239]
[1738254810517,0.65235328,105940.0,105930.0,0.0001419]
[1738254810724,0.46357828,105940.0,105910.0,0.23223415]
[1738254810917,0.18881,105920.0,105910.0,0.33501243]
[1738254811910,0.18881,105920.0,105910.0,0.19923415]
[1738254812809,0.18881,105920.0,105910.0,0.20323415]
[1738254813223,0.65238828,105920.0,105910.0,0.01441615]
[1738254813421,0.65338828,105920.0,105910.0,0.01441615]
[1738254813719,0.65338828,105920.0,105910.0,0.01341615]
[1738254814023,0.65338828,105920.0,105910.0,0.01141615]
[1738254814520,0.65338828,105920.0,105910.0,0.00441615]
[1738254814721,0.65238828,105920.0,105910.0,0.00841615]
[1738254815426,0.65238828,105920.0,105910.0,0.00741615]
[1738254815930,0.65238828,105920.0,105910.0,0.0075729]
[1738254816725,0.7930574,105920.0,105910.0,0.0075729]
[1738254818117,0.80266944,105920.0,105910.0,0.0075729]
[1738254822730,0.80266944,105920.0,105900.0,0.1001419]
[1738254822731,0.188828,105910.0,105900.0,0.1001419]
[1738254822934,0.72424628,105910.0,105900.0,0.1001419]
[1738254824328,0.72424628,105910.0,105900.0,0.1041419]
[1738254825524,0.72424628,105910.0,105900.0,0.1051419]
[1738254825932,0.8649154,105910.0,105900.0,0.1051419]
[1738254827227,0.76213712,105910.0,105900.0,0.2939879]
[1738254827724,0.71873712,105910.0,105900.0,0.2939879]
[1738254828329,0.8215154,105910.0,105900.0,0.2939879]
[1738254829232,0.76491156,105910.0,105900.0,0.1051419]
[1738254830434,0.76491156,105910.0,105900.0,0.2939879]
[1738254831029,0.63369328,105910.0,105900.0,0.39676618]
[1738254831229,0.63369328,105910.0,105900.0,0.44116618]
[1738254831534,0.66213328,105910.0,105900.0,0.44116618]
[1738254832433,0.76491156,105910.0,105900.0,0.3383879]
[1738254833526,0.76491156,105910.0,105900.0,0.2939879]
[1738254837231,0.76491156,105910.0,105900.0,0.1051419]
[1738254838033,0.86768984,105910.0,105900.0,0.1051419]
[1738254838228,0.29164228,105890.0,105880.0,0.313875]
[1738254838435,1.04168228,105890.0,105880.0,0.125]
[1738254838737,1.04168228,105890.0,105880.0,0.313882]
[1738254840133,0.188882,105880.0,105870.0,9.458e-05]
[1738254840334,0.65246028,105880.0,105870.0,9.458e-05]
[1738254841236,0.65246028,105880.0,105870.0,0.00609458]
[1738254841537,0.75623856,105880.0,105870.0,0.00609458]
[1738254841734,0.39445656,105870.0,105860.0,0.22679951]
[1738254841925,0.91189656,105870.0,105860.0,0.22679951]
[1738254842133,0.80911828,105870.0,105860.0,0.22679951]
[1738254842439,0.91189656,105870.0,105860.0,0.22679951]
[1738254845240,0.91189656,105870.0,105860.0,0.2253827]
[1738254847042,0.86366568,105870.0,105830.0,0.228863]
[1738254847337,0.65253128,105840.0,105830.0,0.228863]
[1738254847543,0.68097128,105840.0,105830.0,0.228863]
[1738254848441,0.68097128,105840.0,105830.0,0.231863]
[1738254848641,0.68197128,105840.0,105830.0,0.234863]
[1738254849238,0.579193,105840.0,105830.0,0.234863]
[1738254851544,0.68197128,105840.0,105830.0,0.234863]
[1738254851742,0.68197128,105840.0,105830.0,0.0459]
[1738254852743,0.68197128,105840.0,105830.0,0.004]
[1738254852948,0.72487128,105840.0,105830.0,0.004]
[1738254853444,0.73356958,105840.0,105830.0,0.004]
[1738254853644,0.83634786,105840.0,105830.0,0.004]
[1738254853853,0.77616958,105840.0,105830.0,0.004]
[1738254855647,0.77716958,105840.0,105830.0,0.003]
[1738254856250,0.67225245,105840.0,105820.0,0.312781]
[1738254856449,0.65254928,105830.0,105820.0,0.312781]
[1738254859851,0.65254928,105830.0,105820.0,0.230781]
[1738254861241,0.46357828,105830.0,105810.0,0.19041938]
[1738254861444,0.32020728,105820.0,105810.0,0.19041938]
[1738254861655,0.68100728,105820.0,105810.0,0.19041938]
[1738254862454,0.3609419,105830.0,105810.0,0.15519566]